[Event "Budapest One Week IM-A 03-2025"]
[Site "Budapest"]
[Date "2025.03.21"]
[Round "7.3"]
[White "Chakrabarty, Reyaansh"]
[Black "Rydstrom, Tom"]
[Result "1/2-1/2"]
[Annotator "TA"]
[ECO "C50"]
[WhiteElo "2181"]
[BlackElo "2301"]
[PlyCount "108"]
[EventDate "2025.03.17"]
[EventType "tourn"]
[EventCountry "HUN"]
[SourceTitle "playchess.com"]
[Source "ChessBase"]
[SourceQuality "1"]
[TimeControl "5400+30"]

{[%evp 14,108,31,32,45,18,26,11,16,21,17,14,18,15,15,10,25,27,45,36,38,41,45,41,42,32,43,32,31,9,38,16,16,8,24,0,20,0,27,0,0,0,0,-8,0,0,0,0,0,0,0,-5,0,0,0,-54,-47,-66,0,-50,-14,-14,-18,-15,0,-34,-27,-44,-11,-13,-14,-14,-14,-19,-19,-15,0,-38,-39,-40,-54,-77,-8,-8,-8,-8,-8,-8,-8,-8,0,-8,0,-7,0,-8,0]} 1. e4 {[%emt 0:03:55]} e5 {[%emt 0:09:37]} 2. Nf3 {[%emt 0:00:03]} Nc6 {[%emt 0:00:03]} 3. Bc4 {[%emt 0:00:05]} d6 {[%emt 0:00:04]} 4. Nc3 {[%emt 0:03:42]} Be7 {[%emt 0:00:23]} 5. h3 {[%emt 0:01:39]} Nf6 {[%emt 0:00:25]} 6. O-O {[%emt 0:05:32]} O-O {[%emt 0:00:32]} 7. d4 {[%emt 0:08:43]} h6 {[%emt 0:01:28]} 8. Re1 {[%emt 0:00:17]} Re8 {[%emt 0:00:31][%cal Bf8e8,Be8e6,Be6f6][%mdl 32] C50: Hungarian Defence and Giuoco Pianissimo.} 9. dxe5 {[%emt 0:23:28]} dxe5 $146 {[%emt 0:04:47]} (9... Nxe5 10. Nxe5 dxe5 11. Be3 Bb4 12. Qf3 Qe7 13. Red1 c6 14. Ne2 b5 15. Bb3 a5 16. c3 {1-0 Viela,M (2102)-Viela,A (2147) Porto district-ch 2006 (5)}) 10. Qxd8 {[%emt 0:00:15]} Bxd8 {[%emt 0:01:21]} 11. Be3 {[%emt 0:00:54]} a6 {[%emt 0:11:21]} 12. a3 {[%emt 0:00:28]} Be6 {[%emt 0:00:46] Successful Defense Black} 13. Bxe6 {[%emt 0:02:26]} Rxe6 {[%emt 0:06:35]} 14. Rad1 {[%emt 0:00:12][%cal Ba1d1,Bd1d5,Bd5d7][%mdl 32]} Be7 {[%emt 0:00:12]} 15. Nd5 {[%emt 0:00:21]} Bd6 {[%emt 0:01:06]} 16. c4 {[%emt 0:02:51][%cal Bc2c4,Bc4c5][%mdl 32] [#] Hoping for c5.} Rc8 {[%emt 0:05:58]} (16... Nxe4 $6 17. c5 $16) 17. Nxf6+ {[%emt 0:00:54]} Rxf6 {[%emt 0:00:03]} 18. c5 {[%emt 0:00:11]} Bf8 {[%emt 0:00:11]} 19. Rd5 {[%emt 0:01:29]} Re6 {[%emt 0:00:16]} 20. Red1 {[%emt 0:02:29] Strong Rooks White (d1+d5)} f6 {[%emt 0:01:08]} 21. b4 {[%emt 0:02:57]} Kf7 {[%emt 0:03:01]} 22. g4 {[%emt 0:04:59]} Ree8 {[%emt 0:02:13]} 23. Rd7+ {[%emt 0:01:33]} Re7 {[%emt 0:00:48]} 24. R7d5 {[%emt 0:00:08]} Ree8 {[%emt 0:02:47]} 25. Rd7+ {[%emt 0:00:32]} Be7 {[%emt 0:04:09]} 26. Nh4 {[%emt 0:00:51]} Red8 {[%emt 0:00:51]} 27. Nf5 {[%emt 0:10:03]} Rxd7 {[%emt 0:01:06]} 28. Rxd7 {[%emt 0:00:05]} Ke6 {[%emt 0:01:26]} 29. Rd2 {[%emt 0:02:36]} (29. Nxg7+ $2 Kxd7 30. Kg2 Rh8 $19) 29... Bf8 {[%emt 0:02:00]} 30. h4 {[%emt 0:00:59]} g6 {[%emt 0:06:26]} 31. Ng3 {[%emt 0:01:57]} a5 {[%emt 0:00:21]} 32. Rb2 {[%emt 0:04:23]} axb4 {[%emt 0:03:51]} 33. axb4 {[%emt 0:00:07]} Ra8 {[%emt 0:00:38]} 34. Ne2 {[%emt 0:04:07]} ({White should play} 34. Kg2 $11) 34... Ra4 $15 {[%emt 0:01:35]} 35. Bd2 {[%emt 0:00:10]} Kd7 {[%emt 0:10:56]} (35... Nd4 $1 $15 36. Nxd4+ exd4) 36. Bc3 {[%emt 0:00:52]} (36. Kg2 $11) 36... b6 $1 {[%emt 0:03:57]} 37. cxb6 {[%emt 0:00:31]} cxb6 {[%emt 0:00:04]} (37... Nxb4 $2 38. Bxb4 cxb6 39. Bxf8 $18) 38. b5 $1 {[%emt 0:00:35]} Nd4 {[%emt 0:01:53]} 39. Bxd4 {[%emt 0:01:57]} exd4 $11 {[%emt 0:01:01][%mdl 4096] Endgame KRB-KRN} 40. Nf4 {[%emt 0:00:06]} Bc5 {[%emt 0:06:16]} 41. Nxg6 {[%emt 0:00:35]} d3 {[%emt 0:00:27]} 42. Rd2 {[%emt 0:01:29]} Rxe4 {[%emt 0:00:03]} 43. Rxd3+ {[%emt 0:00:06]} Ke6 {[%emt 0:00:06]} 44. Rg3 {[%emt 0:01:15]} Rb4 {[%emt 0:00:08][%cal Of6f5]} (44... Kf7 $5 45. h5 $8 Bd6 $15) 45. g5 {[%emt 0:01:18]} hxg5 {[%emt 0:01:43]} (45... Rxb5 $2 {loses.} 46. gxh6 Bd6 47. h7 $18) 46. hxg5 fxg5 {[%emt 0:02:17]} 47. Rxg5 {[%emt 0:00:08]} Rxb5 {[%emt 0:00:17]} (47... Kf6 $1 $17 {[%cal Rf6g5]} 48. Rg3 Rb2 (48... Rxb5 49. Nf4 $15)) 48. Nf4+ {[%emt 0:00:46] The position is equal.} Kf6 {[%emt 0:00:34]} 49. Rh5 {[%emt 0:00:18]} Rb3 {[%emt 0:02:22]} 50. Kg2 {[%emt 0:01:26]} Bd6 {[%emt 0:00:11]} 51. Ne2 {[%emt 0:00:56]} Bc5 {[%emt 0:01:20]} 52. f4 {[%emt 0:01:58]} Ke6 {[%emt 0:00:26]} 53. Re5+ {[%emt 0:00:33]} Kd7 {[%emt 0:00:50]} 54. f5 {[%emt 0:01:38]} Re3 {[%emt 0:00:00] Weighted Error Value: White=0.10 (very precise) /Black=0.09 (flawless)   Mistake:       	White=2     	Black=2      Inaccurate:     	White=4     	Black=3      OK:         	White=14    	Black=17     Best:        	White=2     	Black=2      Strong:       	White=1     	Black=1} 1/2-1/2

[Event "Budapest One Week IM-A 03-2025"]
[Site "Budapest"]
[Date "2025.03.21"]
[Round "7.4"]
[White "Singh, Siddharth"]
[Black "Horvath, David"]
[Result "1/2-1/2"]
[Annotator "TA"]
[ECO "B12"]
[WhiteElo "2239"]
[BlackElo "2279"]
[PlyCount "84"]
[EventDate "2025.03.17"]
[EventType "tourn"]
[EventCountry "HUN"]
[SourceTitle "playchess.com"]
[Source "ChessBase"]
[SourceQuality "1"]
[TimeControl "5400+30"]

{[%evp 12,84,37,55,43,6,16,-22,0,-4,0,-6,-1,8,12,7,0,-24,28,39,32,30,31,-14,7,7,17,-67,52,52,47,46,60,35,38,37,83,72,118,85,64,45,38,41,84,78,91,77,69,65,117,109,116,86,119,76,58,25,58,58,58,18,21,29,31,-90,-85,-91,-83,-111,-85,-94,-66,-71,0]} 1. e4 {[%emt 0:00:03]} c6 {[%emt 0:00:05]} 2. d4 {[%emt 0:00:05]} d5 {[%emt 0:00:04]} 3. e5 {[%emt 0:00:04]} Bf5 {[%emt 0:00:02]} 4. Nf3 {[%emt 0:00:15]} e6 {[%emt 0:00:05]} 5. Be2 {[%emt 0:00:05]} c5 {[%emt 0:00:06]} 6. c3 {[%emt 0:00:03]} Nc6 {[%emt 0:00:04]} 7. O-O {[%emt 0:00:06]} cxd4 {[%emt 0:00:04] B12: Caro-Kann: Advance Variation.} 8. Nxd4 {[%emt 0:00:04]} Nge7 {[%emt 0:00:06]} 9. Bb5 {[%emt 0:00:05]} Qc7 {[%emt 0:00:04] The position is equal.} 10. Na3 {[%emt 0:08:13]} (10. f4 $5) 10... Be4 {[%emt 0:15:59]} 11. Ba4 $146 {[%emt 0:25:18]} ({Predecessor:} 11. Qe2 a6 12. Ba4 Qa5 13. Bc2 Nxd4 14. cxd4 Bxc2 15. Nxc2 Rc8 16. Rd1 h5 17. h3 {1-0 Adams,M (2670)-Cummings,D (2325) Wch Seniors 50 31st 2023 (4)}) 11... a6 {[%emt 0:27:26] Against Ndb5} 12. Re1 {[%emt 0:04:05]} Nc8 {[%emt 0:13:15][%cal Of8a3]} 13. Nxc6 {[%emt 0:08:40]} bxc6 {[%emt 0:00:03]} 14. Be3 {[%emt 0:00:06]} Bxa3 {[%emt 0:08:38]} (14... Rb8 $142) 15. bxa3 $11 {[%emt 0:00:04]} O-O {[%emt 0:00:09][%cal Oc6c5]} 16. Bc5 {[%emt 0:03:27]} Rd8 {[%emt 0:00:02][%cal Oc8b6]} 17. h4 {[%emt 0:00:58]} h6 {[%emt 0:05:39]} 18. Qd4 {[%emt 0:00:45]} Rb8 {[%emt 0:03:29]} 19. Re3 {[%emt 0:04:13]} (19. Bb3 $11) 19... Rb2 {[%emt 0:05:40]} (19... Ne7 $1 $15 20. g4 Ng6) 20. Bb3 $14 {[%emt 0:01:19]} Rb1+ {[%emt 0:06:13]} 21. Rxb1 {[%emt 0:00:10]} Bxb1 {[%emt 0:00:03] Black is weak on the dark squares} 22. Rg3 {[%emt 0:00:58]} Bf5 {[%emt 0:02:41]} 23. h5 {[%emt 0:02:42]} Qd7 {[%emt 0:03:12]} (23... Kh8 $14 {is superior.}) 24. Qh4 {[%emt 0:01:59]} Kh8 {[%emt 0:02:12]} ({Black should try} 24... Kh7) 25. Qb4 {[%emt 0:00:27]} Rg8 {[%emt 0:02:12]} 26. a4 {[%emt 0:01:04]} Qc7 {[%emt 0:01:17]} 27. Qd4 {[%emt 0:01:29]} Ne7 {[%emt 0:01:18]} 28. Bd6 {[%emt 0:00:20]} Qd7 {[%emt 0:00:47] [#]} 29. Rf3 $1 {[%emt 0:00:28] White has more active pieces.} Nc8 {[%emt 0:01:13]} 30. Bc5 {[%emt 0:00:12]} Be4 {[%emt 0:00:56]} (30... Qc7 $14) 31. Rf4 $16 {[%emt 0:00:31] and Rxe4 would now be decisive} Rd8 {[%emt 0:01:54]} 32. a5 {[%emt 0:02:44]} Kg8 {[%emt 0:00:17]} 33. Ba4 {[%emt 0:07:09]} Qc7 {[%emt 0:00:54]} 34. Bb6 {[%emt 0:05:12]} Nxb6 {[%emt 0:00:02]} 35. axb6 {[%emt 0:00:02][%csl Ob6] White has a strong passed pawn} (35. Qxb6 Qe7 $15) 35... Qb8 {[%emt 0:01:16]} 36. f3 {[%emt 0:04:59]} f6 {[%emt 0:00:30]} 37. Qe3 {[%emt 0:03:22]} (37. fxe4 fxe5 (37... Qxe5 $2 38. Qxe5 fxe5 39. Rf1 $18) 38. Qc5 exf4 $15) (37. Qc5 {is interesting.} Bd3 38. Qe7 Re8 39. Qd7) 37... fxe5 {[%emt 0:00:07]} 38. Rg4 {[%emt 0:00:02]} (38. Rh4 $14 {is the one way to stay ahead.} Bf5 39. Qc5 (39. Bxc6 $2 {perishes.} Qd6 $19)) 38... Bf5 $17 {[%emt 0:00:09][%cal Od5d4] and ...d4! would now be decisive} 39. Rb4 {[%emt 0:00:03] [#]} Qd6 {[%emt 0:01:00]} 40. g4 {[%emt 0:05:18]} c5 {[%emt 0:00:03]} 41. Rb2 {[%emt 0:01:00]} Bh7 {[%emt 0:00:05]} 42. b7 {[%emt 0:00:56][%cal Oa4d7]} e4 {[%emt 0:01:27] Weighted Error Value: White=0.18 (very precise) /Black=0.15 (very precise)   Mistake:       	White=2     	Black=6      Inaccurate:     	White=6     	Black=1      OK:         	White=11    	Black=17     Best:        	White=1     	Black=3      Strong:       	White=1     	---} (42... Rb8 $17) 1/2-1/2

[Event "Budapest One Week IM-A 03-2025"]
[Site "Budapest"]
[Date "2025.03.21"]
[Round "7.5"]
[White "Ratsma, Midas"]
[Black "Foldes, Marton Gabor"]
[Result "1-0"]
[Annotator "TA"]
[ECO "B48"]
[WhiteElo "2268"]
[BlackElo "2332"]
[PlyCount "105"]
[EventDate "2025.03.17"]
[EventType "tourn"]
[EventCountry "HUN"]
[SourceTitle "playchess.com"]
[Source "ChessBase"]
[SourceQuality "1"]
[TimeControl "5400+30"]

{[%evp 11,105,29,37,7,12,4,17,0,11,0,11,3,9,25,13,38,38,21,26,-19,-16,-40,-51,-44,-42,-52,-56,-54,-64,-74,-67,-91,-21,-21,4,-24,-36,-64,0,0,0,0,0,0,0,0,0,0,0,0,0,0,0,0,0,0,119,141,147,149,152,154,168,167,808,713,1001,821,1055,1048,888,716,994,994,1721,1536,10515,10203,7341,6633,29940,12525,29964,11770,29982,29983,29983,29984,29985,29986,29986,29984,29975,29978,29987,29986]} 1. e4 {[%emt 0:00:03]} c5 {[%emt 0:04:18]} 2. Nf3 {[%emt 0:00:07]} e6 {[%emt 0:00:05]} 3. d4 {[%emt 0:00:06]} cxd4 {[%emt 0:00:04]} 4. Nxd4 {[%emt 0:00:07]} Nc6 {[%emt 0:00:03]} 5. Nc3 {[%emt 0:00:09]} Qc7 {[%emt 0:00:04]} 6. Be3 {[%emt 0:00:09]} a6 {[%emt 0:00:04]} 7. g4 {[%emt 0:00:07] B48: Sicilian: Taimanov: 5 Nc3 Qc7 6 Be3 a6 without Be2.} h6 {[%emt 0:01:57] outshines the older 7...b5.} 8. h4 {[%emt 0:00:06]} Nf6 {[%emt 0:04:45]} 9. Nxc6 {[%emt 0:03:33] The position is equal.} bxc6 {[%emt 0:00:27]} 10. Qf3 {[%emt 0:00:50]} d5 {[%emt 0:08:34]} 11. g5 {[%emt 0:08:59]} hxg5 {[%emt 0:00:13]} 12. hxg5 {[%emt 0:04:37]} Rxh1 {[%emt 0:00:14]} 13. Qxh1 {[%emt 0:00:04]} Ng4 {[%emt 0:08:47]} 14. Bd2 {[%emt 0:11:17]} Rb8 {[%emt 0:07:04]} 15. Na4 $146 {[%emt 0:09:16]} (15. b3 Bc5 16. O-O-O Nxf2 17. Qh8+ Ke7 18. Qxg7 Ba3+ 19. Kb1 Nxd1 20. Nxd1 Qg3 21. Bc3 {1-0 Fabig,H (2144)-Bergner,M (2048) GER SC81 final email 2022}) 15... Qe5 {[%emt 0:10:22][%cal Oe5d4]} 16. Qg2 {[%emt 0:15:46] [#]} Nxf2 {[%emt 0:04:45]} 17. Kxf2 {[%emt 0:15:03]} Qd4+ {[%emt 0:00:19]} (17... dxe4 $2 18. Qg3 Qxg3+ 19. Kxg3 Bd6+ 20. Kf2 $18) 18. Be3 {[%emt 0:01:15]} Qxa4 {[%emt 0:00:09]} 19. b3 {[%emt 0:00:26]} Qb4 {[%emt 0:05:46]} 20. Bd3 {[%emt 0:02:07]} Bc5 {[%emt 0:24:24]} 21. Qg3 {[%emt 0:00:24]} Qd2+ {[%emt 0:13:27]} ({Better is} 21... dxe4 $17 22. Be2 Bd6) 22. Be2 $11 {[%emt 0:00:07][%cal Oe3c5]} Qc3 {[%emt 0:03:55] and ...Bxe3+ would now be decisive} (22... Bxe3+ {simplifies} 23. Qxe3 Qxe3+ 24. Kxe3 Ke7) 23. Bxc5 {[%emt 0:13:57]} Qxc5+ {[%emt 0:00:01]} (23... Qxa1 24. Qd6 (24. Qxb8 Qd4+ 25. Bxd4 f6 26. Qxc8+ Kf7 27. Qd7+ Kg6 28. Qe8+ Kxg5 29. Qh5+ Kf4 30. Qh4#)) 24. Kg2 {[%emt 0:00:10]} Rb4 {[%emt 0:01:43]} (24... Qxc2 $1 $15 25. Qxb8 Qxe2+ 26. Kg1 Qe3+ 27. Kf1 Kd7 (27... Qd3+ 28. Ke1 $17)) 25. Qc7 {[%emt 0:00:30]} Bd7 {[%emt 0:00:34]} 26. Rh1 {[%emt 0:01:05]} Qxc2 {[%emt 0:00:40]} (26... dxe4 $2 27. Rh8+ Ke7 28. Qd8+ (28. Bxa6 $2 Qxg5+ 29. Kh2 Kf6 $19) 28... Kd6 29. Qf8+ (29. Bxa6 Qxc2+ 30. Kg1 Qc1+ 31. Bf1 c5 $17) 29... Kd5 30. Qxf7 $18 (30. Qxg7 $2 Qxc2 31. Qxf7 Qxe2+ $19)) 27. Rh8+ {[%emt 0:04:39]} Ke7 {[%emt 0:00:01]} 28. Qd8+ {[%emt 0:00:08]} Kd6 {[%emt 0:00:00]} 29. Qf8+ {[%emt 0:00:06]} Ke5 {[%emt 0:01:44]} 30. Qxg7+ {[%emt 0:00:23]} (30. Qxb4 $2 Qxe2+ 31. Kh1 Qf1+ (31... dxe4 32. Qc5+ Kf4 33. Qd6+ e5 34. Qxd7 $11) (31... Qxe4+ 32. Qxe4+ dxe4 33. Rd8 $14) (31... Qxa2 32. Qc3+ Kd6 33. e5+ Kc7 34. Rf8 $14) 32. Kh2 Qf4+ (32... dxe4 $2 33. Qc5+ Kf4 34. Rh4+ Kf3 35. Qc3+ e3 36. Rh3+ Kg4 37. Qxe3 $18) 33. Kg2 Qxg5+ (33... dxe4 34. Qc5#) 34. Kf3 Qf4+ 35. Ke2 Kf6 $19 (35... Qxe4+ 36. Qxe4+ dxe4 37. Rg8 $17)) 30... Kd6 $1 {[%emt 0:00:30]} 31. Qf8+ {[%emt 0:03:51]} Ke5 {[%emt 0:00:05]} 32. Qxb4 {[%emt 0:03:33]} Qxe2+ {[%emt 0:00:02][%mdl 4096] Endgame KQR-KQB} 33. Kg1 {[%emt 0:00:18]} Qd1+ {[%emt 0:01:21]} (33... Qe3+ $11 {keeps the balance.} 34. Kh2 c5 35. Qb8+ Kxe4 36. Rh4+ Kf5) 34. Kf2 $16 {[%emt 0:01:19] Qc3+ is the strong threat. Black is now going downhill.} Qc2+ {[%emt 0:00:06] [#]} 35. Ke3 $1 {[%emt 0:01:25][%cal Rb4b8]} Qc1+ {[%emt 0:00:22] [#]} 36. Qd2 $1 {[%emt 0:00:20] Really sharp! White is more active.} d4+ {[%emt 0:00:55]} ({Don't go for} 36... Qxd2+ $2 37. Kxd2 Kd6 38. Rf8 $18) 37. Ke2 {[%emt 0:00:55]} Qxd2+ (37... Qg1) 38. Kxd2 $18 {[%emt 0:00:05] KR-KB} c5 {[%emt 0:01:02]} 39. Rf8 {[%emt 0:00:33]} Bc6 {[%emt 0:00:26]} 40. Rxf7 {[%emt 0:00:54]} Bxe4 {[%emt 0:00:01]} 41. Rc7 {[%emt 0:00:25]} Kf4 {[%emt 0:01:07]} 42. Rxc5 {[%emt 0:00:15]} e5 {[%emt 0:00:00][%cal Be6e5,Be5e4,Be4e3][%mdl 32]} 43. Ra5 {[%emt 0:01:30]} Bf5 {[%emt 0:00:09]} 44. Rxa6 {[%emt 0:00:19]} Kxg5 {[%emt 0:00:06]} 45. Rd6 {[%emt 0:00:27]} Kf4 {[%emt 0:00:33]} 46. b4 {[%emt 0:00:15][%cal Bb3b4,Bb4b5,Bb5b6][%mdl 32]} Kf3 {[%emt 0:01:13]} 47. b5 {[%emt 0:00:18] White threatens Rf6 and mate.} e4 {[%emt 0:00:24]} 48. Rxd4 {[%emt 0:00:15] White mates.} Kf2 {[%emt 0:00:06]} 49. Kc3 {[%emt 0:01:03]} Bg6 {[%emt 0:01:14]} 50. b6 {[%emt 0:00:21]} e3 {[%emt 0:00:07]} 51. Rf4+ {[%emt 0:00:57]} Kg3 {[%emt 0:01:04]} 52. Rf1 {[%emt 0:00:31]} Kg2 {[%emt 0:00:36]} 53. Re1 {[%emt 0:00:08] Weighted Error Value: White=0.09 (flawless) /Black=1.00  Mistake:       	---       	Black=4      Inaccurate:     	White=3     	Black=1      OK:         	White=15    	Black=13     Best:        	White=4     	Black=2      Strong:       	White=2     	Black=1      Brilliant:      	---       	Black=1} 1-0

[Event "Budapest One Week IM-A 03-2025"]
[Site "Budapest"]
[Date "2025.03.21"]
[Round "8.1"]
[White "Turzo, Attila"]
[Black "Foldes, Marton Gabor"]
[Result "0-1"]
[Annotator "TA"]
[ECO "D37"]
[WhiteElo "2272"]
[BlackElo "2332"]
[PlyCount "56"]
[EventDate "2025.03.17"]
[EventType "tourn"]
[EventCountry "HUN"]
[SourceTitle "playchess.com"]
[Source "ChessBase"]
[SourceQuality "1"]
[TimeControl "5400+30"]

{[%evp 9,56,22,31,24,42,27,29,22,36,19,12,0,23,20,28,10,14,24,20,18,16,20,37,-1,52,38,18,0,0,-259,-264,-270,-260,-736,-572,-737,-751,-740,-721,-1797,-1910,-1795,-1574,-1512,-1463,-29990,-29988,-29995,-29996]} 1. d4 {[%emt 0:00:02]} d5 {[%emt 0:00:06]} 2. c4 {[%emt 0:00:04]} e6 {[%emt 0:00:04]} 3. Nf3 {[%emt 0:00:08]} Nf6 {[%emt 0:00:11]} 4. Nc3 {[%emt 0:00:05]} h6 {[%emt 0:00:04]} 5. e3 {[%emt 0:00:30]} Nbd7 {[%emt 0:00:40]} 6. Bd3 {[%emt 0:00:43] D37: Queen's Gambit Declined: 5 Bf4.} b6 {[%emt 0:04:23]} 7. O-O {[%emt 0:13:39]} Bb7 {[%emt 0:00:13]} 8. b3 {[%emt 0:00:04] White has an edge.} Bd6 {[%emt 0:19:22]} 9. Bb2 {[%emt 0:00:16]} O-O {[%emt 0:02:48]} 10. Qc2 {[%emt 0:05:24]} c5 $146 {[%emt 0:09:15]} (10... Re8 11. Nd2 e5 12. dxe5 Nxe5 13. Be2 dxc4 14. Nxc4 Nxc4 15. Bxc4 Ng4 16. g3 Qg5 17. h4 Qh5 18. Be2 Qxh4 {0-1 Kieferle,P-Mersmann,S DLM U20 Girls 1995 (7)}) 11. cxd5 {[%emt 0:01:25]} exd5 {[%emt 0:11:57]} 12. Rfe1 {[%emt 0:13:53]} Rc8 {[%emt 0:08:39]} 13. Bf5 {[%emt 0:06:36]} cxd4 {[%emt 0:13:20]} 14. Nxd4 {[%emt 0:03:43]} Ne4 {[%emt 0:01:14]} 15. Ndb5 {[%emt 0:01:47][%cal Rf5e4]} Bb8 {[%emt 0:06:54]} 16. Qe2 {[%emt 0:01:27]} Rc5 {[%emt 0:10:59]} (16... g6 $11 17. Nxe4 dxe4) 17. b4 {[%emt 0:06:14]} Nxc3 {[%emt 0:01:19]} 18. Bxc3 {[%emt 0:02:15]} (18. Nxc3 {simplifies} Rc4 19. Rad1 Nf6 20. g3) 18... Rc4 {[%emt 0:00:23]} 19. Bd3 {[%emt 0:01:18][%mdl 8192] [#]} (19. Bb2 $11) 19... Rxc3 $1 $19 {[%emt 0:02:33][%mdl 512]} 20. Nxc3 {[%emt 0:00:05] Threatens to win with Rac1.} Qc7 $1 $40 {[%emt 0:00:02][%csl LRc3,LRh2][%mdl 128] Black has strong attack.} 21. Qd2 $2 {[%emt 0:03:52]} ({Avoid the trap} 21. Qg4 $2 Qxh2+ (21... Qxc3 $2 22. Qxd7 Bc6 23. Qf5 $19) 22. Kf1 Ne5 $19) (21. f4 Qxc3 22. a3) 21... Qxh2+ {[%emt 0:02:49]} 22. Kf1 {[%emt 0:00:04] [#]} d4 $1 {[%emt 0:00:33][%mdl 512]} 23. Ne4 {[%emt 0:00:56]} f5 {[%emt 0:03:05]} 24. f4 {[%emt 0:07:52]} fxe4 {[%emt 0:00:22]} 25. Bc4+ {[%emt 0:00:13]} Kh8 {[%emt 0:00:07]} 26. Qxd4 {[%emt 0:00:04]} Ne5 {[%emt 0:01:02][%cal Oe5d3] Threatens to win with ...Nd3!.} 27. Be2 {[%emt 0:05:21] [#]} Nd3 $1 {[%emt 0:00:18]} 28. Bxd3 {[%emt 0:00:57]} (28. Bg4 Be5) 28... exd3 {[%emt 0:00:02] Weighted Error Value: White=1.08/Black=0.06 (flawless)   Loses game:     	White=1     	---        Mistake:       	White=1     	Black=1      Inaccurate:     	White=1     	---        OK:         	White=4     	Black=5      Best:        	---       	Black=2      Brilliant:      	---       	Black=1} 0-1